[Event "*** SCC Grand Prix: Titled Tuesday Blitz"]
[Site "Chess.com"]
[Date "2020.10.13"]
[Round "1"]
[White "emiliocordova"]
[Black "Siemba"]
[Result "1-0"]
[WhiteElo "2827"]
[BlackElo "2425"]
[TimeControl "180+1"]
[EndTime "10:07:03 PDT"]
[Termination "emiliocordova won on time"]

1. d4 {[%clk 0:03:00.9]} 1... d5 {[%clk 0:02:55.5]} 2. Nf3 {[%clk 0:03:01.8]}
2... c5 {[%clk 0:02:55.5]} 3. e3 {[%clk 0:03:01.6]} 3... cxd4 {[%clk 0:02:55.7]}
4. exd4 {[%clk 0:03:01.6]} 4... Nc6 {[%clk 0:02:56.2]} 5. c3 {[%clk 0:03:01.4]}
5... Bg4 {[%clk 0:02:56.5]} 6. Bd3 {[%clk 0:02:59.6]} 6... e6 {[%clk 0:02:56.8]}
7. Nbd2 {[%clk 0:02:59.7]} 7... Bd6 {[%clk 0:02:56.2]} 8. Nf1 {[%clk 0:02:59.7]}
8... Nf6 {[%clk 0:02:50.3]} 9. Ng3 {[%clk 0:02:59.7]} 9... O-O {[%clk 0:02:51]}
10. h3 {[%clk 0:02:57]} 10... Bxf3 {[%clk 0:02:51.2]} 11. Qxf3 {[%clk
0:02:57.7]} 11... e5 {[%clk 0:02:52.1]} 12. Qf5 {[%clk 0:02:09.6]} 12... e4
{[%clk 0:02:05.5]} 13. Be2 {[%clk 0:01:59.4]} 13... Ne7 {[%clk 0:01:08]} 14. Qg5
{[%clk 0:01:59.1]} 14... Ng6 {[%clk 0:01:07]} 15. Nf5 {[%clk 0:01:57.5]} 15...
h6 {[%clk 0:00:59.4]} 16. Qd2 {[%clk 0:01:37.2]} 16... Bf4 {[%clk 0:00:57.1]}
17. Ne3 {[%clk 0:01:33.5]} 17... Bc7 {[%clk 0:00:53.1]} 18. g3 {[%clk
0:01:30.2]} 18... a6 {[%clk 0:00:40.9]} 19. h4 {[%clk 0:01:27.3]} 19... b5
{[%clk 0:00:36]} 20. a4 {[%clk 0:01:27.2]} 20... Rb8 {[%clk 0:00:33.8]} 21. axb5
{[%clk 0:01:27]} 21... axb5 {[%clk 0:00:33.8]} 22. h5 {[%clk 0:01:19.2]} 22...
Ne7 {[%clk 0:00:33.7]} 23. Ra6 {[%clk 0:01:19.3]} 23... Bd6 {[%clk 0:00:23.6]}
24. Rg1 {[%clk 0:01:12.3]} 24... Rb6 {[%clk 0:00:20.2]} 25. Ra5 {[%clk
0:01:09.4]} 25... b4 {[%clk 0:00:14.3]} 26. c4 {[%clk 0:01:04.7]} 26... dxc4
{[%clk 0:00:15.2]} 27. Nxc4 {[%clk 0:01:04.9]} 27... Rc6 {[%clk 0:00:13.7]} 28.
Rb5 {[%clk 0:00:55.6]} 28... Ned5 {[%clk 0:00:12.4]} 29. g4 {[%clk 0:00:22.1]}
29... Qc7 {[%clk 0:00:12.5]} 30. b3 {[%clk 0:00:21.2]} 30... Nc3 {[%clk
0:00:12.3]} 31. g5 {[%clk 0:00:20.8]} 31... Ne8 {[%clk 0:00:04]} 32. Rf5 {[%clk
0:00:19]} 32... Nxe2 {[%clk 0:00:01.6]} 33. Qxe2 {[%clk 0:00:19.9]} 1-0

[Event "*** SCC Grand Prix: Titled Tuesday Blitz"]
[Site "Chess.com"]
[Date "2020.10.13"]
[Round "1"]
[White "Meri-Arabidze"]
[Black "Loy_Konstantin"]
[Result "1-0"]
[WhiteElo "2705"]
[BlackElo "2356"]
[TimeControl "180+1"]
[EndTime "10:07:04 PDT"]
[Termination "Meri-Arabidze won on time"]

1. d4 {[%clk 0:02:53.8]} 1... Nf6 {[%clk 0:02:59.4]} 2. c4 {[%clk 0:02:53.4]}
2... c5 {[%clk 0:02:59.7]} 3. d5 {[%clk 0:02:52.9]} 3... b5 {[%clk 0:03:00.2]}
4. cxb5 {[%clk 0:02:52.4]} 4... a6 {[%clk 0:03:00.7]} 5. bxa6 {[%clk 0:02:52.7]}
5... Bxa6 {[%clk 0:03:01.6]} 6. Nc3 {[%clk 0:02:53]} 6... g6 {[%clk 0:03:00.9]}
7. Nf3 {[%clk 0:02:53]} 7... Bg7 {[%clk 0:02:57.9]} 8. e4 {[%clk 0:02:52.4]}
8... Bxf1 {[%clk 0:02:44.7]} 9. Kxf1 {[%clk 0:02:53.3]} 9... d6 {[%clk
0:02:44.9]} 10. g3 {[%clk 0:02:53.8]} 10... O-O {[%clk 0:02:43.2]} 11. Kg2
{[%clk 0:02:54.4]} 11... Nbd7 {[%clk 0:02:43.7]} 12. Re1 {[%clk 0:02:53.8]}
12... Ra6 {[%clk 0:02:38.9]} 13. a4 {[%clk 0:02:51]} 13... Qb6 {[%clk
0:02:34.4]} 14. Ra3 {[%clk 0:02:38.5]} 14... Ng4 {[%clk 0:02:16.4]} 15. Rb3
{[%clk 0:02:28.9]} 15... Qa5 {[%clk 0:02:07.2]} 16. Rb5 {[%clk 0:02:21.9]} 16...
Qc7 {[%clk 0:02:04]} 17. Bg5 {[%clk 0:02:19.4]} 17... Re8 {[%clk 0:01:41.9]} 18.
Qe2 {[%clk 0:02:12.6]} 18... h6 {[%clk 0:01:28.8]} 19. Bc1 {[%clk 0:02:10]}
19... Rb8 {[%clk 0:01:18.3]} 20. Rxb8+ {[%clk 0:02:06.6]} 20... Nxb8 {[%clk
0:01:18.2]} 21. h3 {[%clk 0:02:06.2]} 21... Ne5 {[%clk 0:01:16.7]} 22. Nxe5
{[%clk 0:02:05.5]} 22... dxe5 {[%clk 0:01:11.2]} 23. Be3 {[%clk 0:02:02.4]}
23... Rb6 {[%clk 0:01:04.7]} 24. Nb5 {[%clk 0:02:01.3]} 24... Qc8 {[%clk
0:01:00.7]} 25. Rc1 {[%clk 0:01:59.9]} 25... Nd7 {[%clk 0:01:00.4]} 26. b4
{[%clk 0:01:59.7]} 26... Ra6 {[%clk 0:00:44.8]} 27. bxc5 {[%clk 0:01:55.1]}
27... Rxa4 {[%clk 0:00:43.4]} 28. c6 {[%clk 0:01:55.2]} 28... Nf6 {[%clk
0:00:42.4]} 29. d6 {[%clk 0:01:43.8]} 29... exd6 {[%clk 0:00:35.1]} 30. Nxd6
{[%clk 0:01:42.7]} 30... Qc7 {[%clk 0:00:35]} 31. Nb5 {[%clk 0:01:36]} 31... Qc8
{[%clk 0:00:33.7]} 32. c7 {[%clk 0:01:34.5]} 32... Nxe4 {[%clk 0:00:27.2]} 33.
Na7 {[%clk 0:01:33.2]} 33... Rxa7 {[%clk 0:00:25.5]} 34. Bxa7 {[%clk 0:01:34.1]}
34... Nd6 {[%clk 0:00:23.3]} 35. Bb8 {[%clk 0:01:13.7]} 35... e4 {[%clk
0:00:16]} 36. Rd1 {[%clk 0:01:09.9]} 36... Be5 {[%clk 0:00:15.4]} 37. Qg4 {[%clk
0:01:04.2]} 37... Qb7 {[%clk 0:00:09.6]} 38. Rxd6 {[%clk 0:00:58.7]} 38... e3+
{[%clk 0:00:07.5]} 39. Kh2 {[%clk 0:00:45.7]} 39... f5 {[%clk 0:00:04]} 40.
Qxg6+ {[%clk 0:00:43.6]} 1-0

[Event "*** SCC Grand Prix: Titled Tuesday Blitz"]
[Site "Chess.com"]
[Date "2020.10.13"]
[Round "1"]
[White "natelleka"]
[Black "UCantHandleDenker"]
[Result "0-1"]
[WhiteElo "2187"]
[BlackElo "2553"]
[TimeControl "180+1"]
[EndTime "10:07:05 PDT"]
[Termination "UCantHandleDenker won by checkmate"]

1. e4 {[%clk 0:02:57.2]} 1... d6 {[%clk 0:02:16.5]} 2. d4 {[%clk 0:02:53.4]}
2... Nf6 {[%clk 0:02:11.3]} 3. Nc3 {[%clk 0:02:52.8]} 3... e5 {[%clk 0:02:09.5]}
4. d5 {[%clk 0:02:46.2]} 4... Be7 {[%clk 0:02:08.9]} 5. Bd3 {[%clk 0:02:45.1]}
5... O-O {[%clk 0:02:09.2]} 6. Nce2 {[%clk 0:02:45.2]} 6... Nbd7 {[%clk
0:02:08.5]} 7. c4 {[%clk 0:02:44.7]} 7... Nc5 {[%clk 0:02:08.4]} 8. Bc2 {[%clk
0:02:44.7]} 8... Ncxe4 {[%clk 0:02:06.6]} 9. Nf3 {[%clk 0:02:41.5]} 9... a5
{[%clk 0:02:04.8]} 10. O-O {[%clk 0:02:41.1]} 10... Nc5 {[%clk 0:02:04.8]} 11.
h3 {[%clk 0:02:38.2]} 11... Re8 {[%clk 0:02:02]} 12. Ng3 {[%clk 0:02:34.6]}
12... g6 {[%clk 0:01:59.8]} 13. Bg5 {[%clk 0:02:24.6]} 13... Nxd5 {[%clk
0:01:52.7]} 14. Qxd5 {[%clk 0:01:43.3]} 14... Bxg5 {[%clk 0:01:51.3]} 15. Nxg5
{[%clk 0:01:42.8]} 15... Qxg5 {[%clk 0:01:50.1]} 16. Kh2 {[%clk 0:01:35.4]}
16... Be6 {[%clk 0:01:49.3]} 17. Qd1 {[%clk 0:01:33.3]} 17... Bxc4 {[%clk
0:01:47]} 18. Re1 {[%clk 0:01:25.6]} 18... Be6 {[%clk 0:01:44.6]} 19. Rc1 {[%clk
0:01:24.7]} 19... Qf4 {[%clk 0:01:40.9]} 20. Re2 {[%clk 0:01:10.2]} 20... h5
{[%clk 0:01:39.9]} 21. Kg1 {[%clk 0:01:09.8]} 21... a4 {[%clk 0:01:23.9]} 22.
Rd2 {[%clk 0:01:02.4]} 22... Bxa2 {[%clk 0:01:20.8]} 23. Ne2 {[%clk 0:00:55.4]}
23... Qg5 {[%clk 0:01:18.9]} 24. Nc3 {[%clk 0:00:45.2]} 24... Bc4 {[%clk
0:01:16.8]} 25. Nd5 {[%clk 0:00:41.6]} 25... Bxd5 {[%clk 0:01:16.4]} 26. Rxd5
{[%clk 0:00:41.7]} 26... a3 {[%clk 0:01:12.8]} 27. b4 {[%clk 0:00:35.9]} 27...
Ne6 {[%clk 0:01:11.4]} 28. Rd2 {[%clk 0:00:27.6]} 28... a2 {[%clk 0:01:08.4]}
29. Ra1 {[%clk 0:00:27.5]} 29... Nf4 {[%clk 0:01:08.5]} 30. Be4 {[%clk
0:00:23.7]} 30... Nxh3+ {[%clk 0:01:06.5]} 31. Kf1 {[%clk 0:00:23.8]} 31... Nf4
{[%clk 0:01:07]} 32. Bxb7 {[%clk 0:00:15.6]} 32... Ra3 {[%clk 0:00:58.2]} 33.
Bc6 {[%clk 0:00:14.4]} 33... Rb8 {[%clk 0:00:57.1]} 34. Qc1 {[%clk 0:00:12.6]}
34... Rb3 {[%clk 0:00:49.6]} 35. Raxa2 {[%clk 0:00:10.5]} 35... R3xb4 {[%clk
0:00:49.1]} 36. Ra1 {[%clk 0:00:10.2]} 36... e4 {[%clk 0:00:40.7]} 37. Rda2
{[%clk 0:00:09.6]} 37... Qxg2+ {[%clk 0:00:39.9]} 38. Ke1 {[%clk 0:00:09.9]}
38... Qg1+ {[%clk 0:00:40]} 39. Kd2 {[%clk 0:00:10.1]} 39... Qxf2+ {[%clk
0:00:40.6]} 40. Kc3 {[%clk 0:00:09.7]} 40... Rb3+ {[%clk 0:00:37.2]} 41. Kc4
{[%clk 0:00:08.7]} 41... R8b4# {[%clk 0:00:37.8]} 0-1

[Event "*** SCC Grand Prix: Titled Tuesday Blitz"]
[Site "Chess.com"]
[Date "2020.10.13"]
[Round "1"]
[White "GiorgianBarbosa"]
[Black "Alexander_Moskalenko"]
[Result "1/2-1/2"]
[WhiteElo "2429"]
[BlackElo "2816"]
[TimeControl "180+1"]
[EndTime "10:07:06 PDT"]
[Termination "Game drawn - insufficient material"]

1. c4 {[%clk 0:03:00.9]} 1... c6 {[%clk 0:02:59.3]} 2. g3 {[%clk 0:02:52.9]}
2... d5 {[%clk 0:03:00.2]} 3. cxd5 {[%clk 0:02:43.2]} 3... cxd5 {[%clk
0:02:59.6]} 4. Bg2 {[%clk 0:02:44.1]} 4... Nf6 {[%clk 0:03:00.1]} 5. Nf3 {[%clk
0:02:43.7]} 5... Nc6 {[%clk 0:03:01]} 6. O-O {[%clk 0:02:44.1]} 6... Bg4 {[%clk
0:02:57]} 7. d4 {[%clk 0:02:41.7]} 7... Bxf3 {[%clk 0:02:55.6]} 8. Bxf3 {[%clk
0:02:41.3]} 8... e6 {[%clk 0:02:56.2]} 9. Nc3 {[%clk 0:02:38.2]} 9... Be7 {[%clk
0:02:53.3]} 10. Bg5 {[%clk 0:02:36.3]} 10... O-O {[%clk 0:02:45.3]} 11. Bxf6
{[%clk 0:02:28.9]} 11... Bxf6 {[%clk 0:02:44.8]} 12. e3 {[%clk 0:02:29.8]} 12...
Qb6 {[%clk 0:02:44]} 13. Qb3 {[%clk 0:02:27.4]} 13... Qxb3 {[%clk 0:02:41.9]}
14. axb3 {[%clk 0:02:28.3]} 14... Rfc8 {[%clk 0:02:41.6]} 15. Rfc1 {[%clk
0:02:24.5]} 15... Be7 {[%clk 0:02:36.8]} 16. Nb5 {[%clk 0:02:20.5]} 16... f5
{[%clk 0:02:35.4]} 17. Kg2 {[%clk 0:02:15.7]} 17... a6 {[%clk 0:02:30]} 18. Nc3
{[%clk 0:02:15.4]} 18... Nb4 {[%clk 0:02:28.1]} 19. Be2 {[%clk 0:02:14.5]} 19...
g5 {[%clk 0:02:25.4]} 20. Na4 {[%clk 0:02:14.4]} 20... Nc2 {[%clk 0:02:06.8]}
21. Nb6 {[%clk 0:01:37.7]} 21... Rc6 {[%clk 0:02:04.1]} 22. Nxa8 {[%clk
0:01:33.8]} 22... Nxa1 {[%clk 0:02:04.4]} 23. Rxc6 {[%clk 0:01:33.1]} 23... bxc6
{[%clk 0:02:03.3]} 24. Bxa6 {[%clk 0:01:22.4]} 24... Bd8 {[%clk 0:02:01.6]} 25.
b4 {[%clk 0:01:13.1]} 25... Nc2 {[%clk 0:02:00.6]} 26. b5 {[%clk 0:01:12.8]}
26... cxb5 {[%clk 0:02:01.2]} 27. Bxb5 {[%clk 0:01:12.7]} 27... Kf7 {[%clk
0:02:02.1]} 28. Kf1 {[%clk 0:01:07.3]} 28... g4 {[%clk 0:01:59.4]} 29. Ke2
{[%clk 0:01:07]} 29... Ba5 {[%clk 0:02:00.1]} 30. Kd3 {[%clk 0:01:01.9]} 30...
Ne1+ {[%clk 0:01:58.4]} 31. Ke2 {[%clk 0:01:02.1]} 31... Nf3 {[%clk 0:01:58.6]}
32. h4 {[%clk 0:01:00.1]} 32... f4 {[%clk 0:01:47.5]} 33. gxf4 {[%clk
0:00:53.1]} 33... Nxh4 {[%clk 0:01:47.1]} 34. b4 {[%clk 0:00:52.7]} 34... Bxb4
{[%clk 0:01:37.6]} 35. Nc7 {[%clk 0:00:50.4]} 35... h5 {[%clk 0:01:38.2]} 36.
Be8+ {[%clk 0:00:49.3]} 36... Ke7 {[%clk 0:01:33.8]} 37. Bxh5 {[%clk 0:00:49.3]}
37... Nf5 {[%clk 0:01:34.7]} 38. Bxg4 {[%clk 0:00:46.9]} 38... Ng7 {[%clk
0:01:35.4]} 39. Na6 {[%clk 0:00:42.2]} 39... Bd6 {[%clk 0:01:34.9]} 40. Nc5
{[%clk 0:00:42.1]} 40... Kf6 {[%clk 0:01:34.1]} 41. Nd7+ {[%clk 0:00:37.9]}
41... Ke7 {[%clk 0:01:33.8]} 42. Ne5 {[%clk 0:00:38.5]} 42... Ne8 {[%clk
0:01:34.2]} 43. f5 {[%clk 0:00:34.3]} 43... Nf6 {[%clk 0:01:32.4]} 44. f3 {[%clk
0:00:29.6]} 44... exf5 {[%clk 0:01:24.2]} 45. Bxf5 {[%clk 0:00:30.5]} 45... Ba3
{[%clk 0:01:24.4]} 46. Kd3 {[%clk 0:00:28.8]} 46... Bb2 {[%clk 0:01:21.8]} 47.
Ng4 {[%clk 0:00:25.7]} 47... Ne8 {[%clk 0:01:21]} 48. e4 {[%clk 0:00:23.8]}
48... Nd6 {[%clk 0:01:21.6]} 49. Bg6 {[%clk 0:00:20.5]} 49... Nb5 {[%clk
0:01:19.6]} 50. exd5 {[%clk 0:00:18.6]} 50... Nxd4 {[%clk 0:01:19.8]} 51. Ke4
{[%clk 0:00:18.4]} 51... Nb5 {[%clk 0:01:19.8]} 52. Ne3 {[%clk 0:00:17.5]} 52...
Nd6+ {[%clk 0:01:19.1]} 53. Kd3 {[%clk 0:00:18.1]} 53... Kf6 {[%clk 0:01:17.9]}
54. Nc4 {[%clk 0:00:15.7]} 54... Nxc4 {[%clk 0:01:16.5]} 55. Kxc4 {[%clk
0:00:15.3]} 55... Kxg6 {[%clk 0:01:17.4]} 56. Kc5 {[%clk 0:00:15.3]} 56... Bf6
{[%clk 0:01:18.3]} 57. Kc6 {[%clk 0:00:13.5]} 57... Kf5 {[%clk 0:01:19.2]} 58.
Kd7 {[%clk 0:00:13.1]} 58... Kf4 {[%clk 0:01:20.1]} 59. d6 {[%clk 0:00:12.5]}
59... Bh4 {[%clk 0:01:21]} 60. Ke6 {[%clk 0:00:12]} 60... Kxf3 {[%clk
0:01:21.9]} 61. d7 {[%clk 0:00:12.8]} 61... Bd8 {[%clk 0:01:22.3]} 62. Kf7
{[%clk 0:00:12.8]} 62... Ba5 {[%clk 0:01:22.9]} 63. Ke8 {[%clk 0:00:13.2]} 63...
Ke3 {[%clk 0:01:22.8]} 64. d8=Q {[%clk 0:00:12.9]} 64... Bxd8 {[%clk 0:01:23.4]}
1/2-1/2

[Event "*** SCC Grand Prix: Titled Tuesday Blitz"]
[Site "Chess.com"]
[Date "2020.10.13"]
[Round "1"]
[White "Triumphmate"]
[Black "vladislavkovalev"]
[Result "0-1"]
[WhiteElo "2450"]
[BlackElo "2862"]
[TimeControl "180+1"]
[EndTime "10:07:07 PDT"]
[Termination "vladislavkovalev won by checkmate"]

1. e4 {[%clk 0:02:54.5]} 1... e5 {[%clk 0:02:59.4]} 2. Nf3 {[%clk 0:02:54.6]}
2... Nc6 {[%clk 0:02:59.6]} 3. Nc3 {[%clk 0:02:54.8]} 3... Nf6 {[%clk
0:02:59.7]} 4. Bb5 {[%clk 0:02:55.1]} 4... Bc5 {[%clk 0:02:58.8]} 5. Nxe5 {[%clk
0:02:53.7]} 5... Nxe5 {[%clk 0:02:58.6]} 6. d4 {[%clk 0:02:53.9]} 6... Bd6
{[%clk 0:02:59.3]} 7. f4 {[%clk 0:02:53.7]} 7... Neg4 {[%clk 0:02:42.9]} 8. e5
{[%clk 0:02:53.6]} 8... Bb4 {[%clk 0:02:43]} 9. O-O {[%clk 0:02:52.3]} 9... O-O
{[%clk 0:02:42.7]} 10. h3 {[%clk 0:02:52.2]} 10... d5 {[%clk 0:02:32.2]} 11.
hxg4 {[%clk 0:02:46.8]} 11... Nxg4 {[%clk 0:02:31.1]} 12. Qe1 {[%clk 0:02:29.5]}
12... Bf5 {[%clk 0:02:18.7]} 13. Bd3 {[%clk 0:02:23.9]} 13... Qd7 {[%clk
0:02:14.5]} 14. Bxf5 {[%clk 0:01:57]} 14... Qxf5 {[%clk 0:02:15.4]} 15. Nxd5
{[%clk 0:01:55.6]} 15... Qd7 {[%clk 0:01:15.7]} 16. Nxb4 {[%clk 0:01:01.1]}
16... Qxd4+ {[%clk 0:01:15.9]} 17. Rf2 {[%clk 0:01:00.8]} 17... Rad8 {[%clk
0:00:59.6]} 18. Nd3 {[%clk 0:00:39.7]} 18... f6 {[%clk 0:00:59.9]} 19. e6 {[%clk
0:00:18.1]} 19... Rfe8 {[%clk 0:01:00]} 20. f5 {[%clk 0:00:18.5]} 20... c5
{[%clk 0:00:57.2]} 21. Qe2 {[%clk 0:00:18.3]} 21... c4 {[%clk 0:00:54.7]} 22.
Bf4 {[%clk 0:00:16.8]} 22... Nxf2 {[%clk 0:00:40.1]} 23. Qxf2 {[%clk 0:00:16.7]}
23... cxd3 {[%clk 0:00:40.5]} 24. Be3 {[%clk 0:00:17.2]} 24... Qxb2 {[%clk
0:00:34.6]} 25. Rc1 {[%clk 0:00:13.4]} 25... dxc2 {[%clk 0:00:32.4]} 26. Rxc2
{[%clk 0:00:14.3]} 26... Rd1+ {[%clk 0:00:28.5]} 27. Kh2 {[%clk 0:00:14.5]}
27... Qe5+ {[%clk 0:00:29.3]} 28. g3 {[%clk 0:00:13.8]} 28... Qe4 {[%clk
0:00:28.2]} 29. g4 {[%clk 0:00:09.8]} 29... h5 {[%clk 0:00:12.8]} 30. Bf4 {[%clk
0:00:08.1]} 30... Rh1+ {[%clk 0:00:10.3]} 31. Kg3 {[%clk 0:00:07.7]} 31... h4#
{[%clk 0:00:11.2]} 0-1

[Event "*** SCC Grand Prix: Titled Tuesday Blitz"]
[Site "Chess.com"]
[Date "2020.10.13"]
[Round "1"]
[White "Kaua18"]
[Black "Leonid_Starozhilov"]
[Result "1-0"]
[WhiteElo "2340"]
[BlackElo "2639"]
[TimeControl "180+1"]
[EndTime "10:07:07 PDT"]
[Termination "Kaua18 won by checkmate"]

1. e4 {[%clk 0:02:56.4]} 1... c5 {[%clk 0:02:56.3]} 2. Nf3 {[%clk 0:02:52.6]}
2... e6 {[%clk 0:02:56.4]} 3. d4 {[%clk 0:02:52.6]} 3... cxd4 {[%clk 0:02:55.1]}
4. Nxd4 {[%clk 0:02:53.5]} 4... a6 {[%clk 0:02:56]} 5. Bd3 {[%clk 0:02:52.1]}
5... Qc7 {[%clk 0:02:56]} 6. O-O {[%clk 0:02:38.5]} 6... Nf6 {[%clk 0:02:55.6]}
7. Qe2 {[%clk 0:02:38.8]} 7... Bd6 {[%clk 0:02:50.4]} 8. h3 {[%clk 0:02:21.8]}
8... h5 {[%clk 0:02:38.4]} 9. Nc3 {[%clk 0:02:20.2]} 9... Bh2+ {[%clk
0:02:20.9]} 10. Kh1 {[%clk 0:02:19.6]} 10... Ng4 {[%clk 0:02:05.4]} 11. f4
{[%clk 0:01:28]} 11... Nc6 {[%clk 0:01:48.7]} 12. Nxc6 {[%clk 0:01:22.1]} 12...
bxc6 {[%clk 0:01:49.6]} 13. e5 {[%clk 0:01:19.6]} 13... Qa7 {[%clk 0:01:35.6]}
14. Ne4 {[%clk 0:01:15.2]} 14... Kf8 {[%clk 0:01:32]} 15. c4 {[%clk 0:00:57]}
15... Qd4 {[%clk 0:01:27.8]} 16. Bd2 {[%clk 0:00:52.9]} 16... f5 {[%clk
0:01:11]} 17. Ng5 {[%clk 0:00:37.6]} 17... Bg3 {[%clk 0:01:00.5]} 18. Be1 {[%clk
0:00:21.8]} 18... Bxe1 {[%clk 0:00:42.8]} 19. Raxe1 {[%clk 0:00:22.7]} 19... c5
{[%clk 0:00:43.4]} 20. Qf3 {[%clk 0:00:22]} 20... Rb8 {[%clk 0:00:40.1]} 21. b3
{[%clk 0:00:18.3]} 21... Bb7 {[%clk 0:00:39.8]} 22. Qe2 {[%clk 0:00:18.3]} 22...
Rd8 {[%clk 0:00:26.8]} 23. Nf3 {[%clk 0:00:18.5]} 23... Bxf3 {[%clk 0:00:17.2]}
24. Qxf3 {[%clk 0:00:19.4]} 24... Kf7 {[%clk 0:00:15.9]} 25. Rd1 {[%clk
0:00:19.1]} 25... Ne3 {[%clk 0:00:14.9]} 26. Bxf5 {[%clk 0:00:12.9]} 26... Nxd1
{[%clk 0:00:14.4]} 27. Rxd1 {[%clk 0:00:13.8]} 27... Qb2 {[%clk 0:00:14.2]} 28.
Be4 {[%clk 0:00:12.4]} 28... Qa3 {[%clk 0:00:08.3]} 29. f5 {[%clk 0:00:12.2]}
29... Kg8 {[%clk 0:00:05.2]} 30. fxe6 {[%clk 0:00:10.7]} 30... Qa5 {[%clk
0:00:05.4]} 31. Qf7# {[%clk 0:00:10.5]} 1-0

[Event "*** SCC Grand Prix: Titled Tuesday Blitz"]
[Site "Chess.com"]
[Date "2020.10.13"]
[Round "1"]
[White "K-Nygren"]
[Black "Hikaru"]
[Result "0-1"]
[WhiteElo "2494"]
[BlackElo "3209"]
[TimeControl "180+1"]
[EndTime "10:07:08 PDT"]
[Termination "Hikaru won by resignation"]

1. e4 {[%clk 0:02:59.5]} 1... g6 {[%clk 0:03:00.2]} 2. d4 {[%clk 0:02:57.5]}
2... Bg7 {[%clk 0:03:01.1]} 3. Nc3 {[%clk 0:02:55.7]} 3... c6 {[%clk 0:03:01.5]}
4. Nf3 {[%clk 0:02:53.4]} 4... d5 {[%clk 0:03:01.6]} 5. h3 {[%clk 0:02:53.8]}
5... dxe4 {[%clk 0:03:01.1]} 6. Nxe4 {[%clk 0:02:54.7]} 6... Nf6 {[%clk
0:03:01.9]} 7. Nxf6+ {[%clk 0:02:54.3]} 7... exf6 {[%clk 0:03:02.8]} 8. Bc4
{[%clk 0:02:53.4]} 8... O-O {[%clk 0:03:02.5]} 9. O-O {[%clk 0:02:52.8]} 9...
Nd7 {[%clk 0:03:03.4]} 10. c3 {[%clk 0:02:52.5]} 10... b5 {[%clk 0:03:03.6]} 11.
Bb3 {[%clk 0:02:52]} 11... Nb6 {[%clk 0:03:04.5]} 12. Bf4 {[%clk 0:02:50.9]}
12... a5 {[%clk 0:03:04.4]} 13. Bc2 {[%clk 0:02:39.1]} 13... a4 {[%clk
0:03:01.5]} 14. b3 {[%clk 0:02:07.6]} 14... Be6 {[%clk 0:02:59.5]} 15. Qd2
{[%clk 0:02:03.3]} 15... Qd7 {[%clk 0:02:44.4]} 16. Rfe1 {[%clk 0:01:54.5]}
16... Ra7 {[%clk 0:02:38.9]} 17. Bh6 {[%clk 0:01:43.5]} 17... Rfa8 {[%clk
0:02:38.2]} 18. Bxg7 {[%clk 0:01:43.4]} 18... Kxg7 {[%clk 0:02:39.1]} 19. Rab1
{[%clk 0:01:40.2]} 19... axb3 {[%clk 0:02:39.3]} 20. axb3 {[%clk 0:01:41.1]}
20... Ra2 {[%clk 0:02:39.7]} 21. Qc1 {[%clk 0:01:22.8]} 21... Nd5 {[%clk
0:02:16.9]} 22. Be4 {[%clk 0:01:19.7]} 22... b4 {[%clk 0:02:16.9]} 23. Bxd5
{[%clk 0:01:17.8]} 23... Bxd5 {[%clk 0:02:17]} 24. Nh2 {[%clk 0:01:13.4]} 24...
Qf5 {[%clk 0:02:13.2]} 25. Rb2 {[%clk 0:00:41.6]} 25... Ra1 {[%clk 0:02:05.9]}
26. Qd2 {[%clk 0:00:41.1]} 26... Qe4 {[%clk 0:01:27.9]} 27. Nf3 {[%clk
0:00:31.6]} 27... Rxe1+ {[%clk 0:01:27]} 28. Qxe1 {[%clk 0:00:25.1]} 28... Qxe1+
{[%clk 0:01:25.8]} 29. Nxe1 {[%clk 0:00:26]} 29... bxc3 {[%clk 0:01:25.6]} 30.
Rc2 {[%clk 0:00:26]} 30... Ra1 {[%clk 0:01:23.2]} 31. Kf1 {[%clk 0:00:24.3]}
31... Bxb3 {[%clk 0:01:15.5]} 32. Rxc3 {[%clk 0:00:23.7]} 32... Bd5 {[%clk
0:01:16.2]} 33. f3 {[%clk 0:00:22.5]} 33... Rd1 {[%clk 0:01:14.8]} 34. Ke2
{[%clk 0:00:16.6]} 34... Rxd4 {[%clk 0:01:13.8]} 35. Nc2 {[%clk 0:00:17.3]}
35... Ra4 {[%clk 0:01:13.9]} 36. Ne3 {[%clk 0:00:17.4]} 36... f5 {[%clk
0:01:13.7]} 37. Rd3 {[%clk 0:00:15.9]} 37... Be6 {[%clk 0:01:13.9]} 38. Rd6
{[%clk 0:00:15.6]} 38... f4 {[%clk 0:01:13.3]} 39. Nc2 {[%clk 0:00:13.9]} 39...
Ra2 {[%clk 0:01:13.4]} 40. Rxc6 {[%clk 0:00:08.4]} 40... Bf5 {[%clk 0:01:13.6]}
41. Kd2 {[%clk 0:00:08.4]} 41... Kh6 {[%clk 0:01:13.6]} 42. Kc1 {[%clk
0:00:08.7]} 42... Rxc2+ {[%clk 0:00:59.8]} 43. Rxc2 {[%clk 0:00:09.6]} 43...
Bxc2 {[%clk 0:01:00.4]} 44. Kxc2 {[%clk 0:00:10.3]} 44... Kg5 {[%clk 0:01:01.3]}
45. Kd2 {[%clk 0:00:11.2]} 45... Kh4 {[%clk 0:01:01.7]} 46. Ke2 {[%clk
0:00:12.1]} 46... Kg3 {[%clk 0:01:02.6]} 47. Kf1 {[%clk 0:00:12.1]} 47... Kh2
{[%clk 0:01:03.4]} 48. Kf2 {[%clk 0:00:12.3]} 48... g5 {[%clk 0:01:03.9]} 49.
Kf1 {[%clk 0:00:10.3]} 49... f5 {[%clk 0:01:01.7]} 50. Kf2 {[%clk 0:00:10.5]}
50... h6 {[%clk 0:00:57.1]} 51. Kf1 {[%clk 0:00:10.5]} 51... h5 {[%clk
0:00:57.7]} 52. Kf2 {[%clk 0:00:10.8]} 52... g4 {[%clk 0:00:58.4]} 53. fxg4
{[%clk 0:00:08.6]} 53... fxg4 {[%clk 0:00:57.8]} 54. hxg4 {[%clk 0:00:07.5]}
54... hxg4 {[%clk 0:00:58.7]} 55. Kf1 {[%clk 0:00:08]} 55... g3 {[%clk
0:00:59.1]} 0-1